bitfinex-derivatives/quotes_BTCF0:USTF0_20250325
["timestamp","ask_amount","ask_price","bid_price","bid_amount"]
[1742891140156,0.0004,86680.0,86679.0,0.24951037]
[1742891140356,0.11688451,86680.0,86679.0,0.24951037]
[1742891140766,0.15438451,86680.0,86679.0,0.24951037]
[1742891140965,0.00152001,86680.0,86679.0,0.24951037]
[1742891141168,0.0004,86680.0,86679.0,0.24951037]
[1742891143066,0.1157645,86680.0,86679.0,0.24951037]
[1742891143263,0.11688451,86680.0,86679.0,0.24951037]
[1742891144060,0.00152001,86680.0,86679.0,0.24951037]
[1742891144473,0.11688451,86680.0,86679.0,0.24951037]
[1742891144669,0.11688451,86680.0,86679.0,0.21081037]
[1742891145061,0.00152001,86680.0,86679.0,0.21081037]
[1742891145670,0.03972001,86680.0,86679.0,0.21081037]
[1742891147869,0.03972001,86680.0,86679.0,0.57161037]
[1742891148671,0.00152001,86680.0,86679.0,0.57161037]
[1742891149868,0.11688451,86680.0,86679.0,0.57161037]
[1742891150070,0.00152001,86680.0,86679.0,0.57161037]
[1742891152271,0.11688451,86680.0,86679.0,0.57161037]
[1742891152464,0.18968451,86680.0,86679.0,0.45624457]
[1742891152669,0.18968451,86680.0,86679.0,0.40932]
[1742891152973,0.18968451,86680.0,86679.0,0.5246858]
[1742891153273,0.30184451,86680.0,86679.0,0.5246858]
[1742891154272,0.30184451,86680.0,86679.0,0.5146858]
[1742891154474,0.30184451,86680.0,86679.0,0.5523858]
[1742891155575,0.00152001,86680.0,86679.0,0.5623858]
[1742891155876,0.00152001,86680.0,86679.0,0.6009858]
[1742891156368,0.0004,86680.0,86679.0,0.6009858]
[1742891156575,0.1157645,86680.0,86679.0,1.7401858]
[1742891157074,0.1157645,86680.0,86679.0,0.2401858]
[1742891157377,0.11688451,86680.0,86679.0,0.2015858]
[1742891157576,0.19268451,86680.0,86679.0,0.1915858]
[1742891158170,0.19268451,86680.0,86679.0,0.07622]
[1742891158574,0.19268451,86680.0,86679.0,0.03852]
[1742891158878,0.19268451,86680.0,86679.0,0.1527658]
[1742891159082,0.19268451,86680.0,86679.0,0.1538858]
[1742891159484,0.55348451,86680.0,86679.0,0.03852]
[1742891159666,0.55348451,86680.0,86673.0,0.0714]
[1742891159667,0.1153725,86674.0,86673.0,0.0714]
[1742891159872,0.1153765,86671.0,86662.0,0.2767663]
[1742891160267,0.1892765,86671.0,86662.0,0.2767663]
[1742891160571,0.1892765,86671.0,86662.0,0.3921545]
[1742891160777,0.1892765,86671.0,86663.0,0.0359]
[1742891161279,0.1892765,86671.0,86664.0,0.115385]
[1742891161481,0.1892765,86671.0,86669.0,0.1153791]
[1742891161781,0.1892765,86671.0,86668.0,0.1153798]
[1742891162285,0.1892765,86671.0,86669.0,0.0576895]
[1742891162478,0.1892765,86671.0,86670.0,0.11555085]
[1742891162673,0.3017165,86671.0,86670.0,0.11555085]
[1742891162977,0.6625165,86671.0,86670.0,0.00017305]
[1742891163179,0.3017165,86671.0,86670.0,0.00017305]
[1742891163375,0.3017165,86671.0,86670.0,0.15215085]
[1742891163680,0.3017165,86671.0,86670.0,0.18875085]
[1742891164077,0.3017165,86671.0,86670.0,0.07337305]
[1742891164277,0.3017165,86671.0,86670.0,0.00017305]
[1742891165780,0.30231651,86671.0,86670.0,0.00017305]
[1742891169083,0.1154045,86650.0,86649.0,0.32159535]
[1742891169285,0.2277645,86650.0,86649.0,0.0008]
[1742891169485,0.1154151,86642.0,86641.0,0.32160665]
[1742891169786,0.1162151,86642.0,86641.0,0.33356759]
[1742891170881,0.1162151,86642.0,86641.0,0.41066759]
[1742891171085,0.1162151,86642.0,86641.0,0.41566759]
[1742891172386,0.1162151,86642.0,86641.0,0.42166759]
[1742891172780,0.1162151,86642.0,86641.0,0.21547634]
[1742891173084,0.1162151,86642.0,86641.0,0.22547634]
[1742891176981,0.1162151,86642.0,86641.0,0.21547634]
[1742891177184,0.1162151,86642.0,86641.0,0.22547634]
[1742891180886,0.0577,86654.0,86649.0,0.1154058]
[1742891181089,0.05891414,86650.0,86649.0,0.1886258]
[1742891181285,0.00097179,86650.0,86649.0,0.1886258]
[1742891181488,0.1154032,86656.0,86655.0,0.115396]
[1742891181687,0.1164832,86656.0,86655.0,0.116476]
[1742891183093,0.1164832,86656.0,86655.0,0.118476]
[1742891183490,0.1164832,86656.0,86655.0,0.120476]
[1742891183992,0.00108,86656.0,86655.0,0.120476]
[1742891184289,8e-05,86661.0,86660.0,0.1153911]
[1742891184492,0.11651071,86661.0,86660.0,0.1165111]
[1742891184683,0.11651071,86661.0,86660.0,0.1923111]
[1742891185693,0.11651071,86661.0,86660.0,0.1933111]
[1742891185894,0.11651071,86661.0,86660.0,0.2310111]
[1742891189092,0.00112001,86661.0,86660.0,0.2410111]
[1742891189395,8e-05,86662.0,86661.0,0.1153898]
[1742891189602,0.1153875,86663.0,86662.0,0.1153885]
[1742891189898,0.11650751,86663.0,86662.0,0.2000285]
[1742891191502,0.11650751,86663.0,86662.0,0.08464]
[1742891191792,0.55230751,86663.0,86662.0,0.07464]
[1742891191999,0.66482751,86663.0,86662.0,0.0353]
[1742891192697,0.66482751,86663.0,86662.0,0.0717]
[1742891193290,0.66482751,86663.0,86662.0,0.07274]
[1742891194602,0.66482751,86663.0,86662.0,0.0717]
[1742891194799,0.66482751,86663.0,86662.0,0.07282]
[1742891195394,0.66482751,86663.0,86662.0,0.32282]
[1742891197401,0.91482751,86663.0,86662.0,0.32282]
[1742891200699,0.91486751,86663.0,86662.0,0.32282]
[1742891202606,0.91486751,86663.0,86662.0,0.4382085]
[1742891202801,0.76460751,86663.0,86662.0,0.4382085]
[1742891203207,0.61192001,86663.0,86662.0,0.4382085]
[1742891203409,0.72730711,86663.0,86662.0,0.32282]
[1742891203607,0.72722711,86663.0,86662.0,0.32282]
[1742891203808,0.76612711,86663.0,86662.0,0.32282]
[1742891204008,0.72722711,86663.0,86662.0,0.4382085]
[1742891204915,0.61184001,86663.0,86662.0,0.4382085]
[1742891205806,0.25104001,86663.0,86662.0,0.4482085]
[1742891206403,0.25,86663.0,86662.0,0.4482085]
[1742891206807,0.25,86663.0,86662.0,0.4582085]
[1742891207007,0.1913,86663.0,86662.0,0.4582085]
[1742891208405,0.1913,86663.0,86662.0,1.9582085]
[1742891210105,0.1913,86663.0,86662.0,2.3660085]
[1742891210304,0.0982243,86663.0,86662.0,2.3660085]
[1742891210499,0.0585092,86663.0,86662.0,2.3660085]
[1742891210709,0.0220169,86663.0,86662.0,2.3660085]
[1742891210910,0.0394,86680.0,86679.0,0.1153658]
[1742891211106,0.00144001,86680.0,86679.0,0.4872058]
[1742891211309,0.0004,86680.0,86679.0,0.5634058]
[1742891211508,0.0004,86680.0,86679.0,0.6022058]
[1742891211701,0.0004,86680.0,86679.0,0.61336292]
[1742891214307,0.1519645,86680.0,86679.0,0.61336292]
[1742891214507,0.15300451,86680.0,86679.0,0.61336292]
[1742891214711,0.19050451,86680.0,86679.0,0.61336292]
[1742891214907,0.11268,86695.0,86691.0,0.1153499]
[1742891215108,1e-08,86693.0,86692.0,0.1153485]
[1742891215317,1e-08,86693.0,86692.0,0.1748085]
[1742891215511,0.0362,86699.0,86695.0,0.1153445]
[1742891215710,0.0362,86699.0,86695.0,0.1369845]
[1742891217503,0.0362,86699.0,86695.0,0.14570224]
[1742891219215,0.0362,86699.0,86695.0,0.13570224]
[1742891219918,0.0362,86699.0,86695.0,0.21150224]
[1742891221408,0.1515394,86699.0,86695.0,0.57230224]
[1742891222221,0.1157432,86696.0,86695.0,0.5157845]
[1742891222607,0.1886432,86696.0,86695.0,0.5157845]
[1742891223018,0.0733,86696.0,86695.0,0.5157845]
[1742891223706,0.0733,86696.0,86695.0,0.5257845]
[1742891223907,0.0362,86696.0,86695.0,0.53435031]
[1742891224110,0.0004,86696.0,86695.0,0.60755031]
[1742891226514,0.0004,86696.0,86695.0,0.61755031]
[1742891228815,0.0004,86696.0,86695.0,0.73111031]
[1742891234317,0.0004,86696.0,86695.0,1.15400105]
[1742891235028,0.0004,86696.0,86695.0,1.15396442]
[1742891235326,0.0004,86696.0,86695.0,1.1539642]
[1742891236321,0.0596518,86700.0,86695.0,1.1539642]
[1742891236523,1e-07,86712.0,86711.0,0.1153233]
[1742891236725,1e-07,86712.0,86711.0,0.75614036]
[1742891237022,1e-07,86712.0,86711.0,2.29144036]
[1742891237418,1e-07,86712.0,86711.0,2.29140036]
[1742891237613,1e-07,86712.0,86711.0,2.2763433]
[1742891239225,1e-07,86712.0,86711.0,2.28728043]
[1742891239724,1e-07,86712.0,86711.0,2.32398043]
[1742891241230,1e-07,86712.0,86711.0,0.82398043]
[1742891241532,1e-07,86712.0,86711.0,0.71070043]
[1742891241728,1e-07,86712.0,86711.0,0.67540043]
[1742891242039,1e-07,86712.0,86711.0,0.66540043]
[1742891242324,1e-07,86712.0,86711.0,0.62870043]
[1742891242719,0.1107001,86712.0,86711.0,0.66420043]
[1742891243833,0.226022,86712.0,86711.0,0.66420043]
[1742891244719,0.226022,86712.0,86711.0,0.15257713]
[1742891244919,0.226022,86712.0,86711.0,0.2568833]
[1742891245121,0.226022,86712.0,86711.0,0.00156]
[1742891245330,0.226022,86712.0,86711.0,0.1168833]
[1742891247633,0.226022,86712.0,86711.0,0.16608931]
[1742891249129,0.1107001,86712.0,86711.0,0.16608931]
[1742891249438,0.226022,86712.0,86711.0,0.16608931]
[1742891253443,0.226022,86712.0,86711.0,0.1550833]
[1742891256136,0.226022,86712.0,86711.0,0.1933833]
[1742891256323,0.226022,86712.0,86711.0,0.20453565]
[1742891262033,0.1107001,86712.0,86711.0,0.20453565]
[1742891262734,0.226022,86712.0,86711.0,0.20453565]
[1742891270042,0.226022,86712.0,86711.0,0.70453565]
[1742891270435,0.187422,86712.0,86711.0,0.70453565]
[1742891271442,0.152022,86712.0,86711.0,0.70453565]
[1742891272647,0.189422,86712.0,86711.0,0.70453565]
[1742891274148,0.189422,86712.0,86711.0,0.71964883]
[1742891275847,0.189422,86712.0,86711.0,0.73440029]
[1742891276051,0.152022,86712.0,86711.0,0.73440029]
[1742891276549,0.189322,86712.0,86711.0,0.73440029]
[1742891278640,0.0367001,86712.0,86711.0,0.74440029]
[1742891279046,0.152022,86712.0,86711.0,0.74440029]
[1742891279850,0.152022,86712.0,86711.0,0.74491725]
[1742891280241,0.189622,86712.0,86711.0,0.74491725]
[1742891281249,0.189622,86712.0,86711.0,0.5403816]
[1742891281453,0.1153286,86707.0,86706.0,0.20619125]
[1742891281747,0.1153326,86704.0,86700.0,0.0391]
[1742891281947,0.1153326,86704.0,86699.0,0.2767663]
[1742891281948,0.47721261,86704.0,86703.0,0.00125305]
[1742891282151,0.54921261,86704.0,86703.0,0.00125305]
[1742891282340,0.1153379,86700.0,86699.0,0.2181663]
[1742891282543,0.1153485,86692.0,86691.0,0.34632467]
[1742891282742,0.1161085,86692.0,86691.0,0.34708467]
[1742891282943,0.1524085,86692.0,86691.0,0.34708467]
[1742891283653,0.1524085,86692.0,86691.0,0.00076]
[1742891283843,0.1153565,86686.0,86685.0,0.0361]
[1742891284045,0.11595651,86686.0,86685.0,0.0361]
[1742891284243,0.15395651,86686.0,86685.0,0.0361]
[1742891284851,0.15395651,86686.0,86685.0,0.03686]
[1742891285249,0.15395651,86686.0,86681.0,0.01128794]
[1742891285250,0.1153685,86677.0,86676.0,0.00866353]
[1742891285456,0.2300885,86677.0,86676.0,0.0476]
[1742891285753,0.2300885,86677.0,86676.0,0.0376]
[1742891286149,0.3040885,86677.0,86676.0,0.0376]
[1742891286955,0.3040885,86677.0,86676.0,0.0416]
[1742891287753,0.3040885,86677.0,86676.0,0.0466]
[1742891288347,0.1160485,86677.0,86676.0,0.1619698]
[1742891288657,0.1160485,86677.0,86676.0,0.1719698]
[1742891289758,0.1160485,86677.0,86676.0,1.6719698]
[1742891289952,0.1153685,86677.0,86676.0,1.6719698]
[1742891293555,0.1153685,86677.0,86676.0,0.1719698]
[1742891293857,0.1160085,86677.0,86676.0,0.1719698]
[1742891295959,0.1526085,86677.0,86676.0,0.1719698]
[1742891297853,0.1160085,86677.0,86676.0,0.1719698]
[1742891303265,0.1540085,86677.0,86676.0,0.1719698]
[1742891303454,0.1540085,86677.0,86676.0,0.0466]
[1742891303654,0.1913085,86677.0,86676.0,0.046]
[1742891303852,0.1913085,86677.0,86676.0,0.0466]
[1742891304168,0.1913085,86677.0,86676.0,0.1994698]
[1742891305762,0.19614213,86677.0,86676.0,0.1994698]
[1742891307656,0.31130213,86677.0,86676.0,0.1994698]
[1742891308868,0.19614213,86677.0,86676.0,0.1994698]
[1742891309177,0.31138213,86677.0,86676.0,0.1994698]
[1742891310672,0.31138213,86677.0,86676.0,0.0841]
[1742891311362,0.31138213,86677.0,86676.0,0.1994698]
[1742891311966,0.31138213,86677.0,86676.0,0.0841]
[1742891312474,0.31130213,86677.0,86676.0,0.0841]
[1742891312679,0.31130213,86677.0,86676.0,0.046]
[1742891313873,0.1153752,86672.0,86671.0,0.00046151]
[1742891314177,0.1160152,86672.0,86671.0,0.00106151]
[1742891314467,0.1886152,86672.0,86671.0,0.03576151]
[1742891314674,0.1886152,86672.0,86671.0,0.03644151]
[1742891315269,0.1886152,86672.0,86671.0,0.04144151]
[1742891315470,0.1999657,86672.0,86671.0,0.04144151]
[1742891316269,0.1999657,86672.0,86671.0,0.04676151]
[1742891316671,0.1999657,86672.0,86671.0,0.04740151]
[1742891318173,0.1999657,86672.0,86671.0,0.04676151]
[1742891318375,0.1886152,86672.0,86671.0,0.04676151]
[1742891318573,0.1886152,86672.0,86671.0,0.04744151]
[1742891319674,0.3033752,86672.0,86671.0,0.04744151]
[1742891320072,0.31759478,86672.0,86671.0,0.04744151]
[1742891320272,0.31759478,86672.0,86671.0,0.04676151]
[1742891322076,0.1153858,86664.0,86663.0,0.0369]
[1742891322275,0.1153858,86664.0,86663.0,0.07404]
[1742891322276,0.1160658,86664.0,86663.0,0.07404]
[1742891322467,0.1551658,86664.0,86663.0,0.07404]
[1742891323180,0.1551658,86664.0,86663.0,0.08840782]
[1742891323370,0.1910658,86664.0,86663.0,0.12440782]
[1742891323570,0.1910658,86664.0,86663.0,0.11404]
[1742891323865,0.1910658,86664.0,86663.0,0.11804]
[1742891330485,0.1910658,86664.0,86663.0,0.08114]
[1742891330671,0.1154084,86648.0,86647.0,0.12422085]
[1742891330872,0.1154084,86648.0,86647.0,0.17852919]
[1742891331180,0.1154084,86648.0,86647.0,0.29393489]
[1742891331373,0.1163284,86648.0,86647.0,0.29393489]
[1742891333177,0.1173284,86648.0,86647.0,0.29493489]
[1742891333779,0.1183284,86648.0,86647.0,0.29693489]
[1742891335378,0.1183284,86648.0,86647.0,0.30566842]
[1742891335784,0.1183284,86648.0,86647.0,0.37576842]
[1742891336585,0.00292,86648.0,86647.0,0.37576842]
[1742891336784,0.002,86648.0,86647.0,0.37576842]
[1742891336978,0.002,86648.0,86647.0,0.38576842]
[1742891337174,0.00017305,86656.0,86654.0,0.1730973]
[1742891337379,0.1153982,86655.0,86654.0,0.0683395]
[1742891337583,0.1162382,86655.0,86654.0,0.0683395]
[1742891337778,0.1162382,86655.0,86654.0,1.5683395]
[1742891337981,0.1153982,86655.0,86654.0,0.0683395]
[1742891338182,0.1163182,86655.0,86654.0,0.0683395]
[1742891338874,0.1153982,86655.0,86654.0,0.0683395]
[1742891339077,0.1163182,86655.0,86654.0,0.0683395]
[1742891339485,0.1163182,86655.0,86654.0,0.0693395]
[1742891340183,0.1163182,86655.0,86654.0,0.0713395]
[1742891340389,0.1173182,86655.0,86654.0,0.0723395]
[1742891340585,0.1173182,86655.0,86654.0,0.0693395]
[1742891340885,0.00292,86655.0,86654.0,0.0733395]
[1742891341187,0.00284,86655.0,86654.0,0.0833395]
[1742891341382,0.002,86655.0,86654.0,0.0833395]
[1742891341582,0.1173978,86655.0,86654.0,0.0833395]
[1742891342890,0.1182378,86655.0,86654.0,0.0833395]
[1742891346095,0.1858378,86655.0,86654.0,0.0833395]
[1742891350587,0.00284,86655.0,86654.0,0.0833395]
[1742891351282,0.1182378,86655.0,86654.0,0.0833395]
[1742891352095,0.00284,86655.0,86654.0,0.0833395]
[1742891352285,0.1182378,86655.0,86654.0,0.0833395]
[1742891353696,0.1182378,86655.0,86654.0,0.1146395]
[1742891354691,0.1495378,86655.0,86654.0,0.1146395]
[1742891355995,0.1182378,86655.0,86654.0,0.1146395]
[1742891356494,0.1182378,86655.0,86654.0,0.1470395]
[1742891360900,0.1182378,86655.0,86654.0,0.4978395]
[1742891361099,0.1182378,86655.0,86654.0,0.5078395]
[1742891361911,0.1495378,86655.0,86654.0,0.5078395]
[1742891362802,0.1817378,86655.0,86654.0,0.5078395]
[1742891368499,0.1182378,86655.0,86654.0,0.5078395]
[1742891368699,0.00284,86655.0,86654.0,0.5078395]
[1742891368898,0.03554,86655.0,86654.0,0.5078395]
[1742891369496,0.03554,86655.0,86654.0,0.1470395]
[1742891369701,0.03554,86655.0,86654.0,0.5078395]
[1742891370003,0.1509378,86655.0,86654.0,0.5078395]
[1742891370703,0.1509378,86655.0,86654.0,0.1470395]
[1742891370908,0.1509378,86655.0,86654.0,0.5078395]
[1742891371617,0.00284,86655.0,86654.0,0.5078395]
[1742891371801,0.1182378,86655.0,86654.0,0.5078395]
[1742891371998,0.17289154,86659.0,86657.0,0.0576975]
[1742891372209,0.17353154,86659.0,86658.0,0.2139938]
[1742891372409,0.17353154,86659.0,86658.0,0.2845938]
[1742891372610,0.17353154,86659.0,86658.0,1.7845938]
[1742891372800,0.17289154,86659.0,86658.0,1.7845938]
[1742891373403,0.17389154,86659.0,86658.0,1.7845938]
[1742891373704,0.17389154,86659.0,86658.0,1.7875938]
[1742891374103,0.001,86659.0,86658.0,1.7875938]
[1742891374910,0.1154713,86660.0,86659.0,0.1153925]
[1742891375201,8e-05,86660.0,86659.0,0.2059925]
[1742891375407,0.00068001,86660.0,86659.0,0.2709925]
[1742891375717,0.00068001,86660.0,86659.0,1.7709925]
[1742891376016,8e-05,86660.0,86659.0,1.7709925]
[1742891376315,8e-05,86660.0,86659.0,1.7739925]
[1742891376706,8e-05,86660.0,86659.0,1.8911125]
[1742891377606,0.13842369,86660.0,86659.0,1.8911125]
[1742891381226,0.17306459,86667.0,86666.0,0.1153831]
[1742891381522,0.00077306,86667.0,86666.0,0.9045831]
[1742891381714,0.00017305,86667.0,86666.0,0.9694831]
[1742891381912,0.00017305,86667.0,86666.0,2.4694831]
[1742891382918,0.00017305,86667.0,86666.0,2.4724831]
[1742891383123,0.00017305,86667.0,86666.0,2.4744831]
[1742891392031,0.11555485,86667.0,86666.0,0.0156]
[1742891392327,0.11615486,86667.0,86666.0,0.015]
[1742891392523,0.11615486,86667.0,86666.0,0.1310631]
[1742891392524,0.14775486,86667.0,86666.0,0.1310631]
[1742891392725,0.14775486,86667.0,86666.0,0.01568]
[1742891392925,0.14775486,86667.0,86666.0,0.1310631]
[1742891393520,0.14775486,86667.0,86666.0,0.01568]
[1742891393721,0.18065486,86667.0,86666.0,0.01568]
[1742891393920,0.18065486,86667.0,86666.0,0.1310631]
[1742891395727,0.18065486,86667.0,86666.0,0.01568]
[1742891396232,0.18065486,86667.0,86666.0,0.1303831]
[1742891396432,0.18065486,86667.0,86666.0,0.1310631]
[1742891399323,0.18065486,86667.0,86666.0,0.01568]
[1742891399522,0.18065486,86667.0,86666.0,0.015]
[1742891399727,0.38810884,86667.0,86666.0,0.015]
[1742891400132,0.38810884,86667.0,86666.0,0.1303831]
[1742891400432,0.38810884,86667.0,86666.0,0.1309831]
[1742891402235,0.38810884,86667.0,86666.0,0.0156]
[1742891402733,0.28632271,86667.0,86666.0,0.0156]
[1742891403325,0.1153925,86659.0,86641.0,0.3608]
[1742891403533,0.1153925,86659.0,86658.0,0.03077305]
[1742891403835,0.2087925,86659.0,86658.0,0.03077305]
[1742891404129,0.2087925,86659.0,86658.0,0.02077305]
[1742891404321,0.2087925,86659.0,86658.0,0.13616685]
[1742891404731,0.2097925,86659.0,86658.0,0.14216685]
[1742891406239,0.2097925,86659.0,86658.0,0.02677305]
[1742891406424,0.2097925,86659.0,86658.0,0.14216685]
[1742891408138,0.2097925,86659.0,86658.0,0.16536685]
[1742891408139,0.1783925,86659.0,86658.0,0.16536685]
[1742891408330,0.1775925,86659.0,86658.0,0.22806685]
[1742891408530,0.1775925,86659.0,86658.0,0.11267305]
[1742891410026,0.1783525,86659.0,86658.0,0.11267305]
[1742891413637,0.5391525,86659.0,86658.0,0.006]
[1742891413836,0.1154071,86648.0,86647.0,0.02254179]
[1742891414037,0.1163271,86648.0,86647.0,0.02092]
[1742891414237,0.1154071,86648.0,86647.0,0.02092]
[1742891414640,0.1163271,86648.0,86647.0,0.02092]
[1742891414832,0.1163271,86648.0,86647.0,0.1363284]
[1742891415031,0.1774271,86648.0,86647.0,0.2335284]
[1742891415735,0.1784271,86648.0,86647.0,0.2345284]
[1742891416042,0.1784271,86648.0,86647.0,0.2245284]
[1742891416341,0.00292,86648.0,86647.0,0.2345284]
[1742891416544,0.002,86648.0,86647.0,0.2345284]
[1742891416731,0.1174071,86648.0,86647.0,0.2345284]
[1742891416927,0.1164071,86648.0,86647.0,1.7345284]
[1742891417132,0.001,86648.0,86647.0,1.7345284]
[1742891417336,0.1154071,86648.0,86647.0,1.7335284]
[1742891419133,0.1154071,86648.0,86647.0,0.2335284]
[1742891419531,0.1478271,86648.0,86647.0,0.2335284]
[1742891419726,0.1478271,86648.0,86647.0,1.7335284]
[1742891420027,0.1154071,86648.0,86647.0,1.7335284]
[1742891420227,8e-05,86649.0,86648.0,0.1154071]
[1742891420436,0.1154858,86649.0,86648.0,0.2012071]
[1742891420639,0.1164058,86649.0,86648.0,0.2012071]
[1742891421041,0.1154858,86649.0,86648.0,0.2012071]
[1742891421446,0.1164058,86649.0,86648.0,0.2012071]
[1742891421850,0.17285452,86655.0,86654.0,0.1153991]
[1742891422036,0.17285452,86655.0,86654.0,0.4968791]
[1742891422238,0.17349452,86655.0,86654.0,0.5598791]
[1742891422743,0.17285452,86655.0,86654.0,0.5598791]
[1742891423739,0.17349452,86655.0,86654.0,0.5598791]
[1742891424042,0.28889232,86655.0,86654.0,0.5598791]
[1742891424742,0.17349452,86655.0,86654.0,0.5598791]
[1742891425548,0.17285452,86655.0,86654.0,0.5598791]
[1742891425950,0.17349452,86655.0,86654.0,2.0598791]
[1742891426148,0.17285452,86655.0,86654.0,2.0598791]
[1742891428637,0.0576958,86660.0,86659.0,0.1153925]
[1742891428837,0.0576958,86660.0,86659.0,0.1359925]
[1742891429443,0.28823812,86666.0,86665.0,0.1153845]
[1742891429643,0.28887812,86666.0,86665.0,0.1159845]
[1742891429952,0.28887812,86666.0,86665.0,0.1259845]
[1742891430350,0.32067812,86666.0,86665.0,0.1259845]
[1742891430549,0.20629452,86666.0,86665.0,0.1259845]
[1742891430752,0.20829452,86666.0,86665.0,0.1259845]
[1742891431254,0.32367762,86666.0,86665.0,0.1259845]
[1742891432446,0.00364,86666.0,86665.0,0.1259845]
[1742891432641,0.00364,86666.0,86665.0,0.4867845]
[1742891433554,0.20737512,86671.0,86667.0,0.0576905]
[1742891433756,0.20797513,86671.0,86670.0,0.1153778]
[1742891433947,0.20737512,86671.0,86670.0,0.1361378]
[1742891434146,0.20813512,86671.0,86670.0,1.6361378]
[1742891434349,0.32275162,86671.0,86670.0,1.6361378]
[1742891434655,0.20737512,86671.0,86670.0,1.6361378]
[1742891434846,0.23897512,86671.0,86670.0,1.6361378]
[1742891435347,0.20937512,86671.0,86670.0,1.6361378]
[1742891435846,0.21137512,86671.0,86670.0,1.6361378]
[1742891436455,0.20937512,86671.0,86670.0,2.0449378]
[1742891436852,8e-05,86672.0,86671.0,0.1153765]
[1742891437053,8e-05,86672.0,86671.0,0.1660565]
[1742891437556,0.17278366,86674.0,86673.0,0.1153738]
[1742891437750,0.17346366,86674.0,86673.0,0.1360538]
[1742891437950,0.17278366,86674.0,86673.0,0.1360538]
[1742891438255,0.17350366,86674.0,86673.0,0.1360538]
[1742891438455,0.17278366,86674.0,86673.0,0.1360538]
[1742891438854,0.17342366,86674.0,86673.0,0.1360538]
[1742891439250,0.17342366,86674.0,86673.0,1.6360538]
[1742891439559,0.17278366,86674.0,86673.0,1.6360538]
[1742891439760,0.00483363,86677.0,86676.0,0.1153698]
[1742891440064,0.00483363,86677.0,86676.0,0.1360498]
[1742891440461,0.00483363,86677.0,86676.0,2.0438498]
[1742891443666,0.00483363,86677.0,86676.0,2.1072498]
[1742891445256,0.18290213,86677.0,86676.0,0.6072498]
[1742891445454,0.06753363,86677.0,86676.0,0.7202898]
[1742891446559,0.06753363,86677.0,86676.0,0.7509898]
[1742891454266,0.06749363,86677.0,86676.0,0.7509898]
[1742891456877,0.06749363,86677.0,86676.0,0.6379498]
[1742891457063,0.06749363,86677.0,86676.0,0.7507098]
[1742891458869,0.00479363,86677.0,86676.0,0.7507098]
[1742891459272,0.07049363,86677.0,86676.0,0.7507098]
[1742891460071,0.07049363,86677.0,86676.0,0.7407098]
[1742891460376,0.07049363,86677.0,86676.0,0.7507098]
[1742891466279,0.03779363,86677.0,86676.0,0.7507098]
[1742891466486,0.00479363,86677.0,86676.0,0.7507098]
[1742891468279,0.00479363,86677.0,86676.0,2.2507098]
[1742891469081,8e-05,86678.0,86677.0,0.1153685]
[1742891469276,0.00504594,86689.0,86686.0,0.1153565]
[1742891469489,0.00504594,86689.0,86688.0,0.1153539]
[1742891469677,0.00490551,86691.0,86690.0,0.1153512]
[1742891469875,0.00498551,86691.0,86690.0,0.6968312]
[1742891470074,0.20737512,86692.0,86691.0,0.1153499]
[1742891470274,0.20737512,86692.0,86691.0,2.0160699]
[1742891470475,0.20737512,86692.0,86691.0,2.0784699]
[1742891470677,0.00490323,86698.0,86693.0,0.1153472]
[1742891470994,0.00532885,86694.0,86693.0,0.3260272]
[1742891471286,0.00532885,86694.0,86693.0,0.3884272]
[1742891471889,0.03722885,86694.0,86693.0,0.3884272]
[1742891472193,0.03822885,86694.0,86693.0,0.3884272]
[1742891472687,0.03822885,86694.0,86693.0,0.39707339]
[1742891473989,0.03922885,86694.0,86693.0,0.80487339]
[1742891474881,0.00490323,86698.0,86694.0,0.0576729]
[1742891475082,0.00490323,86698.0,86697.0,0.4761419]
[1742891475277,0.00490323,86698.0,86697.0,0.6368219]
[1742891475494,0.00490323,86698.0,86697.0,0.7005219]
[1742891475681,0.00490323,86698.0,86697.0,2.2005219]
[1742891476081,0.00590323,86698.0,86697.0,2.2005219]
[1742891477177,0.00690323,86698.0,86697.0,2.2005219]
[1742891477779,0.00790323,86698.0,86697.0,2.2005219]
[1742891477980,0.00790323,86698.0,86697.0,2.6083219]
[1742891478493,0.00690323,86698.0,86697.0,2.6083219]
[1742891478696,0.00890323,86698.0,86697.0,2.6083219]
[1742891479692,0.04010323,86698.0,86697.0,2.7219619]
[1742891482097,0.04010323,86698.0,86697.0,2.6083219]
[1742891482296,0.04010323,86698.0,86697.0,2.7219619]
[1742891492507,0.00890323,86698.0,86697.0,2.7219619]
[1742891493616,0.00890323,86698.0,86697.0,2.73720779]
[1742891494808,0.00890323,86698.0,86697.0,2.73719737]
[1742891495210,0.03980323,86698.0,86697.0,2.73719737]
[1742891496204,0.00890323,86698.0,86697.0,2.73719737]
[1742891496610,0.00890323,86698.0,86697.0,2.73718892]
[1742891497228,0.00890323,86698.0,86697.0,2.7219619]
[1742891498213,0.07150323,86698.0,86697.0,2.7219619]
[1742891498412,0.07150323,86698.0,86697.0,2.73717228]
[1742891498612,0.07150323,86698.0,86697.0,2.7219619]
[1742891498809,0.07150323,86698.0,86697.0,2.74631674]
[1742891499012,0.07150323,86698.0,86697.0,2.7219619]
[1742891499606,0.07150323,86698.0,86697.0,2.73718733]
[1742891500009,0.07150323,86698.0,86697.0,2.73700405]
[1742891500210,0.07150323,86698.0,86697.0,2.73700403]
[1742891500610,0.07150323,86698.0,86697.0,2.73700424]
[1742891500810,0.07150323,86698.0,86697.0,2.7219619]
[1742891503322,8e-05,86699.0,86698.0,0.1153406]
[1742891503509,8e-05,86699.0,86698.0,0.3561006]
[1742891503707,8e-05,86699.0,86698.0,0.4202006]
[1742891503907,8e-05,86699.0,86698.0,1.9202006]
[1742891504304,8e-05,86699.0,86698.0,1.93559029]
[1742891504724,0.00208,86699.0,86698.0,1.93559029]
[1742891505015,0.00017305,86700.0,86699.0,0.1153392]
[1742891505210,0.00017305,86700.0,86699.0,0.3801192]
[1742891505411,0.03227305,86700.0,86699.0,0.3801192]
[1742891505605,0.03227305,86700.0,86699.0,1.8801192]
[1742891506011,0.03227305,86700.0,86699.0,1.89546518]
[1742891506217,0.00217305,86700.0,86699.0,2.30326518]
[1742891506812,0.00417305,86700.0,86699.0,2.30326518]
[1742891507014,0.03617305,86700.0,86699.0,2.30326518]
[1742891507318,0.00417305,86700.0,86699.0,2.30326518]
[1742891507704,0.03617305,86700.0,86699.0,2.30326518]
[1742891508319,0.03417305,86700.0,86699.0,3.02486518]
[1742891508523,0.03417305,86700.0,86699.0,3.02986518]
[1742891508919,0.03217305,86700.0,86699.0,3.05638631]
[1742891509118,0.00524665,86701.0,86700.0,0.1153379]
[1742891509315,0.00524665,86701.0,86700.0,0.42852501]
[1742891509825,0.00524665,86701.0,86700.0,1.92852501]
[1742891510907,0.00524665,86701.0,86700.0,1.93252501]
[1742891511113,0.00524665,86701.0,86700.0,1.93452501]